fUST/lending_fUST_20260602
["ID","MTS","AMOUNT","RATE_DAILY","PERIOD"]
[423772469,1780414250000,-331.09669041,0.00017044,2]
[423772495,1780414250000,-548.02333322,0.00017533,2]
[423772505,1780414250000,-199.13620998,0.0001757,2]
[423772501,1780414250000,-564.13185131,0.0001757,2]
[423772500,1780414250000,-280.82299029,0.0001757,2]
[423772504,1780414250000,-496.64503562,0.0001757,2]
[423772503,1780414250000,-622.93144652,0.0001757,2]
[423772506,1780414250000,-204.23501868,0.0001757,2]
[423772508,1780414250000,-262.35875317,0.0001757,2]
[423772517,1780414250000,-175.08959144,0.0001757,2]
[423772516,1780414250000,-212.40354653,0.0001757,2]
[423772502,1780414250000,-216.04005023,0.0001757,2]
[423772510,1780414250000,-263.64469785,0.0001757,2]
[423772507,1780414250000,-239.33430265,0.0001757,2]
[423772511,1780414250000,-556.02965081,0.0001757,2]
[423772513,1780414250000,-494.56973935,0.0001757,2]
[423772515,1780414250000,-222.9323655,0.0001757,2]
[423772512,1780414250000,-195.93343579,0.0001757,2]
[423772521,1780414250000,-180.25916355,0.0001757,2]
[423772514,1780414250000,-177.42049704,0.0001757,2]
[423772519,1780414250000,-187.75626853,0.0001757,2]
[423772520,1780414250000,-368.26183472,0.0001757,2]
[423772474,1780414250000,-370.08273038,0.0001707,7]
[423772509,1780414250000,-274.79990227,0.0001757,2]
[423772499,1780414250000,-175.92602449,0.0001757,2]
[423772518,1780414250000,-192.15966053,0.0001757,2]
[423772497,1780414250000,-511.46426977,0.00017533,2]
[423772471,1780414250000,-329.71315956,0.00017044,2]
[423772498,1780414250000,-850.03687972,0.0001757,2]
[423772479,1780414250000,-213.62058502,0.00017215,2]
[423772472,1780414250000,-184.13091736,0.00017044,2]
[423772473,1780414250000,-291.050335,0.00017061,2]
[423772475,1780414250000,-720.0,0.00017098,2]
[423772477,1780414250000,-2349.25329934,0.00017126,2]
[423772476,1780414250000,-166.24904024,0.00017115,2]
[423772491,1780414250000,-355.62910515,0.000175,2]
[423772492,1780414250000,-362.52409348,0.000175,2]
[423772488,1780414250000,-500.0,0.00017499,2]
[423772493,1780414250000,-181.256735,0.00017531,2]
[423772480,1780414250000,-1009.5,0.00017215,2]
[423772483,1780414250000,-175.214844,0.00017444,2]
[423772490,1780414250000,-461.30354452,0.000175,2]
[423772494,1780414250000,-507.61891231,0.00017533,2]
[423772489,1780414250000,-500.0,0.00017499,2]
[423772486,1780414250000,-500.38217765,0.00017451,2]
[423772487,1780414250000,-1009.5,0.00017489,2]
[423772496,1780414250000,-581.05675753,0.00017533,2]
[423772481,1780414250000,-500.0,0.00017346,2]
[423772485,1780414250000,-500.0,0.00017451,2]
[423772482,1780414250000,-500.0,0.00017346,2]
[423772484,1780414250000,-500.0,0.00017448,2]
[423772553,1780414251000,-500.0,0.00017799,2]
[423772551,1780414251000,-500.0,0.00017799,2]
[423772547,1780414251000,-500.0,0.00017799,2]
[423772549,1780414251000,-500.0,0.00017799,2]
[423772554,1780414251000,-500.0,0.00017799,2]
[423772564,1780414251000,-500.7784865,0.00017799,2]
[423772548,1780414251000,-501.0429184,0.00017799,2]
[423772565,1780414251000,-500.0,0.00017799,2]
[423772556,1780414251000,-501.05073867,0.00017799,2]
[423772555,1780414251000,-500.0,0.00017799,2]
[423772558,1780414251000,-502.1600971,0.00017799,2]
[423772563,1780414251000,-500.90549987,0.00017799,2]
[423772562,1780414251000,-500.0,0.00017799,2]
[423772560,1780414251000,-500.0,0.00017799,2]
[423772559,1780414251000,-500.0,0.00017799,2]
[423772561,1780414251000,-501.56575587,0.00017799,2]
[423772566,1780414251000,-500.0,0.00017799,2]
[423772570,1780414251000,-1000.0,0.00017799,2]
[423772568,1780414251000,-500.0,0.00017799,2]
[423772569,1780414251000,-500.0,0.00017799,2]
[423772546,1780414251000,-500.97057572,0.00017799,2]
[423772557,1780414251000,-500.0,0.00017799,2]
[423772552,1780414251000,-500.0,0.00017799,2]
[423772530,1780414251000,-160.0,0.00017626,2]
[423772545,1780414251000,-500.0,0.00017799,2]
[423772571,1780414251000,-500.0,0.00017799,2]
[423772529,1780414251000,-434.039647,0.00017618,2]
[423772522,1780414251000,-198.64318825,0.0001757,2]
[423772531,1780414251000,-196.99002093,0.00017643,2]
[423772528,1780414251000,-297.019823,0.00017618,2]
[423772523,1780414251000,-234.93236161,0.0001757,2]
[423772527,1780414251000,-160.0,0.00017618,2]
[423772524,1780414251000,-977.42429785,0.000176,2]
[423772525,1780414251000,-596.10235326,0.000176,2]
[423772526,1780414251000,-1621.04286315,0.000176,2]
[423772541,1780414251000,-500.0,0.00017799,2]
[423772533,1780414251000,-332.49808048,0.00017643,2]
[423772542,1780414251000,-171.91462992,0.00017799,2]
[423772534,1780414251000,-218.77294299,0.00017643,2]
[423772532,1780414251000,-185.48505504,0.00017643,2]
[423772543,1780414251000,-500.0,0.00017799,2]
[423772535,1780414251000,-500.0,0.00017722,2]
[423772537,1780414251000,-2349.25329934,0.0001775,2]
[423772538,1780414251000,-1009.5,0.00017763,2]
[423772539,1780414251000,-500.0,0.00017798,2]
[423772536,1780414251000,-291.050335,0.00017723,2]
[423772540,1780414251000,-500.0,0.00017798,2]
[423772544,1780414251000,-500.0,0.00017799,2]
[423772550,1780414251000,-500.0,0.00017799,2]
[423772572,1780414251000,-500.0,0.00017799,2]
[423772567,1780414251000,-1733.12,0.00017799,2]
[423772575,1780414251000,-500.0,0.00017799,2]
[423772602,1780414251000,-500.0,0.00017799,2]
[423772603,1780414251000,-500.0,0.00017799,2]
[423772607,1780414251000,-500.0,0.00017799,2]
[423772606,1780414251000,-1413.95,0.00017799,2]
[423772604,1780414251000,-500.0,0.00017799,2]
[423772605,1780414251000,-500.0,0.00017799,2]
[423772608,1780414251000,-500.0,0.00017799,2]
[423772611,1780414251000,-500.0,0.00017799,2]
[423772612,1780414251000,-501.80480469,0.00017799,2]
[423772609,1780414251000,-500.0,0.00017799,2]
[423772601,1780414251000,-500.0,0.00017799,2]
[423772610,1780414251000,-500.0,0.00017799,2]
[423772617,1780414251000,-500.0,0.00017799,2]
[423772618,1780414251000,-500.0,0.00017799,2]
[423772615,1780414251000,-500.0,0.00017799,2]
[423772614,1780414251000,-500.0,0.00017799,2]
[423772619,1780414251000,-500.0,0.00017799,2]
[423772620,1780414251000,-500.0,0.00017799,2]
[423772621,1780414251000,-163.79444771,0.00017799,2]
[423772622,1780414251000,-500.0,0.00017799,2]
[423772623,1780414251000,-500.0,0.00017799,2]
[423772573,1780414251000,-605.41369361,0.00017799,2]
[423772616,1780414251000,-500.0,0.00017799,2]
[423772600,1780414251000,-500.0,0.00017799,2]
[423772613,1780414251000,-500.0,0.00017799,2]
[423772598,1780414251000,-500.0,0.00017799,2]
[423772574,1780414251000,-500.0,0.00017799,2]
[423772599,1780414251000,-500.0,0.00017799,2]
[423772576,1780414251000,-501.74443878,0.00017799,2]
[423772577,1780414251000,-500.0,0.00017799,2]
[423772578,1780414251000,-500.0,0.00017799,2]
[423772588,1780414251000,-500.0,0.00017799,2]
[423772579,1780414251000,-1239.33,0.00017799,2]
[423772581,1780414251000,-500.0,0.00017799,2]
[423772584,1780414251000,-814.86,0.00017799,2]
[423772586,1780414251000,-501.00125911,0.00017799,2]
[423772583,1780414251000,-500.0,0.00017799,2]
[423772582,1780414251000,-402.31104959,0.00017799,2]
[423772587,1780414251000,-500.0,0.00017799,2]
[423772585,1780414251000,-500.0,0.00017799,2]
[423772597,1780414251000,-500.0,0.00017799,2]
[423772595,1780414251000,-607.43682591,0.00017799,2]
[423772594,1780414251000,-511.71238134,0.00017799,2]
[423772593,1780414251000,-500.0,0.00017799,2]
[423772592,1780414251000,-346.84154924,0.00017799,2]
[423772596,1780414251000,-500.0,0.00017799,2]
[423772590,1780414251000,-500.0,0.00017799,2]
[423772589,1780414251000,-399.39951454,0.00017799,2]
[423772580,1780414251000,-419.29849892,0.00017799,2]
[423772591,1780414251000,-500.0,0.00017799,2]
[423772663,1780414252000,-337.54666906,0.00017883,2]
[423772653,1780414252000,-375.20087788,0.00017883,2]
[423772652,1780414252000,-355.67910711,0.00017883,2]
[423772654,1780414252000,-388.35224995,0.00017883,2]
[423772655,1780414252000,-730.69777763,0.00017883,2]
[423772656,1780414252000,-304.75911475,0.00017883,2]
[423772657,1780414252000,-160.92716097,0.00017883,2]
[423772659,1780414252000,-305.18168653,0.00017883,2]
[423772658,1780414252000,-324.78150965,0.00017883,2]
[423772660,1780414252000,-333.70847495,0.00017883,2]
[423772661,1780414252000,-165.95857006,0.00017883,2]
[423772662,1780414252000,-272.90365588,0.00017883,2]
[423772675,1780414252000,-188.49977011,0.00017883,2]
[423772665,1780414252000,-774.74234337,0.00017883,2]
[423772668,1780414252000,-167.69542636,0.00017883,2]
[423772667,1780414252000,-308.6335512,0.00017883,2]
[423772676,1780414252000,-330.70460232,0.00017883,2]
[423772674,1780414252000,-168.75563521,0.00017883,2]
[423772677,1780414252000,-333.36443701,0.00017883,2]
[423772669,1780414252000,-515.99685116,0.00017883,2]
[423772678,1780414252000,-334.24809656,0.00017883,2]
[423772673,1780414252000,-321.17105641,0.00017883,2]
[423772679,1780414252000,-248.7296911,0.00017883,2]
[423772651,1780414252000,-302.42197907,0.00017883,2]
[423772664,1780414252000,-323.71486385,0.00017883,2]
[423772650,1780414252000,-235.86625853,0.00017883,2]
[423772625,1780414252000,-500.0,0.00017799,2]
[423772648,1780414252000,-329.60858813,0.00017883,2]
[423772672,1780414252000,-385.75738779,0.00017883,2]
[423772624,1780414252000,-500.0,0.00017799,2]
[423772626,1780414252000,-977.42429785,0.000178,2]
[423772627,1780414252000,-596.10235326,0.000178,2]
[423772628,1780414252000,-1621.04286315,0.000178,2]
[423772629,1780414252000,-126000.0,0.000178,2]
[423772630,1780414252000,-615.07139269,0.0001785,2]
[423772631,1780414252000,-533.44365772,0.0001785,2]
[423772632,1780414252000,-543.78614022,0.0001785,2]
[423772633,1780414252000,-260.53229352,0.00017883,2]
[423772634,1780414252000,-257.99842558,0.00017883,2]
[423772649,1780414252000,-441.17913897,0.00017883,2]
[423772635,1780414252000,-268.62335891,0.00017883,2]
[423772637,1780414252000,-399.30486761,0.00017883,2]
[423772638,1780414252000,-351.31020044,0.00017883,2]
[423772639,1780414252000,-246.95696412,0.00017883,2]
[423772640,1780414252000,-221.23897249,0.00017883,2]
[423772642,1780414252000,-165.35230116,0.00017883,2]
[423772641,1780414252000,-310.46171385,0.00017883,2]
[423772643,1780414252000,-336.68703625,0.00017883,2]
[423772644,1780414252000,-308.07306874,0.00017883,2]
[423772645,1780414252000,-160.64349234,0.00017883,2]
[423772646,1780414252000,-170.8228232,0.00017883,2]
[423772647,1780414252000,-161.84886882,0.00017883,2]
[423772636,1780414252000,-166.22971769,0.00017883,2]
[423772670,1780414252000,-381.07499826,0.00017883,2]
[423772666,1780414252000,-322.92743335,0.00017883,2]
[423772680,1780414252000,-354.46761539,0.00017883,2]
[423772711,1780414252000,-417.4313627,0.00017921,2]
[423772710,1780414252000,-527.28939571,0.00017921,2]
[423772712,1780414252000,-741.37286775,0.00017921,2]
[423772709,1780414252000,-549.59980455,0.00017921,2]
[423772713,1780414252000,-449.22500598,0.00017921,2]
[423772714,1780414252000,-391.86687159,0.00017921,2]
[423772721,1780414252000,-384.31932106,0.00017921,2]
[423772716,1780414252000,-427.48601549,0.00017921,2]
[423772718,1780414252000,-417.87783999,0.00017921,2]
[423772723,1780414252000,-449.32395338,0.00017921,2]
[423772722,1780414252000,-375.51253707,0.00017921,2]
[423772725,1780414252000,-380.86564371,0.00017921,2]
[423772719,1780414252000,-434.55064791,0.00017921,2]
[423772720,1780414252000,-350.17918287,0.00017921,2]
[423772726,1780414252000,-162.18504502,0.00017921,2]
[423772724,1780414252000,-381.73152081,0.00017921,2]
[423772717,1780414252000,-424.80709306,0.00017921,2]
[423772715,1780414252000,-659.42631913,0.00017921,2]
[423772727,1780414252000,-223.64169994,0.00017921,2]
[423772729,1780414252000,-375.88048793,0.00017921,2]
[423772728,1780414252000,-418.96207456,0.00017921,2]
[423772731,1780414252000,-307.84717756,0.00017921,2]
[423772734,1780414252000,-279.708022,0.0001798,2]
[423772730,1780414252000,-397.2863765,0.00017921,2]
[423772733,1780414252000,-354.84099408,0.00017921,2]
[423772707,1780414252000,-408.47003735,0.00017921,2]
[423772708,1780414252000,-524.71750635,0.00017921,2]
[423772671,1780414252000,-681.95235969,0.00017883,2]
[423772705,1780414252000,-160.08062453,0.00017921,2]
[423772681,1780414252000,-341.6456464,0.00017883,2]
[423772682,1780414252000,-701.43704246,0.00017883,2]
[423772686,1780414252000,-380.09540813,0.00017883,2]
[423772687,1780414252000,-213.93718982,0.00017883,2]
[423772683,1780414252000,-378.53933229,0.00017883,2]
[423772685,1780414252000,-166.53755108,0.00017883,2]
[423772684,1780414252000,-353.26473597,0.00017883,2]
[423772706,1780414252000,-158.02721826,0.00017921,2]
[423772688,1780414252000,-404.7107109,0.00017883,2]
[423772732,1780414252000,-469.86472323,0.00017921,2]
[423772690,1780414252000,-191.42845734,0.00017921,2]
[423772692,1780414252000,-722.59934459,0.00017921,2]
[423772689,1780414252000,-1133.38250629,0.00017921,2]
[423772693,1780414252000,-561.64598058,0.00017921,2]
[423772691,1780414252000,-351.85204897,0.00017921,2]
[423772703,1780414252000,-312.76385475,0.00017921,2]
[423772700,1780414252000,-339.64186973,0.00017921,2]
[423772701,1780414252000,-830.57526203,0.00017921,2]
[423772702,1780414252000,-662.19338082,0.00017921,2]
[423772704,1780414252000,-325.25679891,0.00017921,2]
[423772698,1780414252000,-703.69847762,0.00017921,2]
[423772697,1780414252000,-313.21123355,0.00017921,2]
[423772696,1780414252000,-764.11217181,0.00017921,2]
[423772695,1780414252000,-432.08010047,0.00017921,2]
[423772694,1780414252000,-752.17580174,0.00017921,2]
[423772699,1780414252000,-382.48913527,0.00017921,2]
[423772781,1780414253000,-1003.9572046,0.00018347,2]
[423772779,1780414253000,-1621.04286315,0.000183,2]
[423772780,1780414253000,-1009.5,0.00018311,2]
[423772768,1780414253000,-500.0,0.0001827,2]
[423772766,1780414253000,-876.79630307,0.00018233,2]
[423772770,1780414253000,-794.03836806,0.00018272,2]
[423772767,1780414253000,-359.0,0.00018246,2]
[423772763,1780414253000,-216.0,0.00018218,2]
[423772764,1780414253000,-913.37222203,0.00018233,2]
[423772769,1780414253000,-1416.72813286,0.00018272,2]
[423772778,1780414253000,-596.10235326,0.000183,2]
[423772788,1780414253000,-198.38368779,0.000185,2]
[423772771,1780414253000,-903.24918074,0.00018272,2]
[423772773,1780414253000,-879.62309703,0.00018272,2]
[423772772,1780414253000,-940.21975218,0.00018272,2]
[423772774,1780414253000,-827.74172603,0.00018272,2]
[423772775,1780414253000,-926.71608469,0.00018272,2]
[423772776,1780414253000,-824.28289891,0.00018272,2]
[423772777,1780414253000,-977.42429785,0.000183,2]
[423772783,1780414253000,-291.050335,0.00018386,2]
[423772784,1780414253000,-198.38368779,0.000184,2]
[423772785,1780414253000,-1957.0,0.00018431,2]
[423772786,1780414253000,-251.505992,0.00018493,2]
[423772765,1780414253000,-852.44044961,0.00018233,2]
[423772782,1780414253000,-500.0,0.00018347,2]
[423772762,1780414253000,-198.38368779,0.000182,2]
[423772750,1780414253000,-500.0,0.00018073,2]
[423772759,1780414253000,-977.42429785,0.000182,2]
[423772789,1780414253000,-500.0,0.00018544,2]
[423772739,1780414253000,-437.54588597,0.00017995,2]
[423772740,1780414253000,-478.6686053,0.00017995,2]
[423772738,1780414253000,-162.15905658,0.00017995,2]
[423772736,1780414253000,-370.97011007,0.00017995,2]
[423772737,1780414253000,-498.74712072,0.00017995,2]
[423772735,1780414253000,-393.98004187,0.00017995,2]
[423772741,1780414253000,-500.0,0.00017996,2]
[423772742,1780414253000,-977.42429785,0.00018,2]
[423772744,1780414253000,-1621.04286315,0.00018,2]
[423772747,1780414253000,-1009.5,0.00018037,2]
[423772748,1780414253000,-500.0,0.00018073,2]
[423772746,1780414253000,-198.38368779,0.00018,2]
[423772743,1780414253000,-596.10235326,0.00018,2]
[423772751,1780414253000,-1000.0,0.00018073,2]
[423772753,1780414253000,-314.54078252,0.00018073,2]
[423772745,1780414253000,-1685.73332413,0.00018,2]
[423772752,1780414253000,-187.37,0.00018073,2]
[423772749,1780414253000,-500.0,0.00018073,2]
[423772754,1780414253000,-500.0,0.00018073,2]
[423772756,1780414253000,-500.0,0.00018073,2]
[423772758,1780414253000,-500.0,0.00018073,2]
[423772757,1780414253000,-500.0,0.00018073,2]
[423772760,1780414253000,-596.10235326,0.000182,2]
[423772761,1780414253000,-1621.04286315,0.000182,2]
[423772755,1780414253000,-182.64201152,0.00018073,2]
[423772790,1780414253000,-1009.5,0.00018585,2]
[423772787,1780414253000,-356.423788,0.00018499,2]
[423772831,1780414253000,-2949.0,0.00019178,2]
[423772821,1780414253000,-2949.0,0.00019178,2]
[423772824,1780414253000,-2949.0,0.00019178,2]
[423772822,1780414253000,-2949.0,0.00019178,2]
[423772825,1780414253000,-2949.0,0.00019178,2]
[423772826,1780414253000,-2949.0,0.00019178,2]
[423772827,1780414253000,-2949.0,0.00019178,2]
[423772828,1780414253000,-2949.0,0.00019178,2]
[423772829,1780414253000,-2949.0,0.00019178,2]
[423772832,1780414253000,-2949.0,0.00019178,2]
[423772833,1780414253000,-2949.0,0.00019178,2]
[423772835,1780414253000,-2949.0,0.00019178,2]
[423772834,1780414253000,-2949.0,0.00019178,2]
[423772830,1780414253000,-2949.0,0.00019178,2]
[423772837,1780414253000,-2949.0,0.00019178,2]
[423772836,1780414253000,-2949.0,0.00019178,2]
[423772840,1780414253000,-2949.0,0.00019178,2]
[423772839,1780414253000,-2949.0,0.00019178,2]
[423772838,1780414253000,-2949.0,0.00019178,2]
[423772841,1780414253000,-2951.31600814,0.00019178,2]
[423772842,1780414253000,-228.58886623,0.00019178,2]
[423772844,1780414253000,-161.179,0.00019189,2]
[423772845,1780414253000,-151.0,0.000193,2]
[423772843,1780414253000,-189.93628803,0.00019189,2]
[423772793,1780414253000,-1022.92853953,0.00018759,2]
[423772846,1780414253000,-151.0,0.000193,2]
[423772820,1780414253000,-2949.0,0.00019178,2]
[423772819,1780414253000,-2949.0,0.00019178,2]
[423772823,1780414253000,-2949.0,0.00019178,2]
[423772817,1780414253000,-500.0,0.00019169,2]
[423772792,1780414253000,-187.12378172,0.00018738,2]
[423772791,1780414253000,-500.0,0.00018621,2]
[423772794,1780414253000,-1052.15556369,0.00018759,2]
[423772795,1780414253000,-1041.24433312,0.00018799,2]
[423772802,1780414253000,-989.13947869,0.00018799,2]
[423772805,1780414253000,-4421.598148,0.00018818,2]
[423772803,1780414253000,-864.0,0.00018808,2]
[423772800,1780414253000,-993.29007123,0.00018799,2]
[423772818,1780414253000,-2949.0,0.00019178,2]
[423772804,1780414253000,-637.95206379,0.00018818,2]
[423772797,1780414253000,-952.84604168,0.00018799,2]
[423772806,1780414253000,-4421.598148,0.00018818,2]
[423772798,1780414253000,-1083.89901688,0.00018799,2]
[423772796,1780414253000,-1700.07375944,0.00018799,2]
[423772801,1780414253000,-1112.05930163,0.00018799,2]
[423772816,1780414253000,-1009.5,0.00019133,2]
[423772799,1780414253000,-1128.26370262,0.00018799,2]
[423772815,1780414253000,-291.050335,0.00019048,2]
[423772809,1780414253000,-1009.5,0.00018859,2]
[423772810,1780414253000,-500.0,0.00018895,2]
[423772811,1780414253000,-160.0,0.00018982,2]
[423772808,1780414253000,-4421.598148,0.00018818,2]
[423772813,1780414253000,-595.606896,0.00018982,2]
[423772807,1780414253000,-4421.598148,0.00018818,2]
[423772812,1780414253000,-377.803448,0.00018982,2]
[423772814,1780414253000,-151.0,0.00019,2]
[423772881,1780414254000,-1009.5,0.00020229,2]
[423772886,1780414254000,-171.23739913,0.00020602,2]
[423772889,1780414254000,-1363.90471938,0.0002073,2]
[423772882,1780414254000,-178.211894,0.00020261,2]
[423772888,1780414254000,-1000.0,0.00020689,2]
[423772872,1780414254000,-152.208028,0.0002,2]
[423772880,1780414254000,-249.0,0.00020218,2]
[423772890,1780414254000,-1402.87408492,0.0002073,2]
[423772879,1780414254000,-4421.598148,0.0002,2]
[423772876,1780414254000,-4421.598148,0.0002,2]
[423772884,1780414254000,-1009.5,0.00020503,2]
[423772883,1780414254000,-500.0,0.00020265,2]
[423772887,1780414254000,-156.10347982,0.00020623,2]
[423772902,1780414254000,-1009.5,0.00021324,2]
[423772893,1780414254000,-2266.76501258,0.00020773,2]
[423772891,1780414254000,-274.93269597,0.00020735,2]
[423772892,1780414254000,-1388.32577749,0.00020773,2]
[423772898,1780414254000,-500.0,0.00020813,2]
[423772895,1780414254000,-1324.38676165,0.00020773,2]
[423772896,1780414254000,-1318.85263826,0.00020773,2]
[423772894,1780414254000,-1270.4613889,0.00020773,2]
[423772897,1780414254000,-1009.5,0.00020776,2]
[423772900,1780414254000,-1009.5,0.0002105,2]
[423772899,1780414254000,-152.0,0.00020859,2]
[423772901,1780414254000,-500.0,0.00021087,2]
[423772871,1780414254000,-250.9,0.0002,2]
[423772885,1780414254000,-500.0,0.00020539,2]
[423772875,1780414254000,-152.208028,0.0002,2]
[423772847,1780414254000,-1009.5,0.00019407,2]
[423772874,1780414254000,-152.208028,0.0002,2]
[423772848,1780414254000,-500.0,0.00019443,2]
[423772849,1780414254000,-363.38301968,0.00019503,2]
[423772850,1780414254000,-1193.41662945,0.00019548,2]
[423772853,1780414254000,-1983.41938601,0.00019589,2]
[423772852,1780414254000,-1214.7850553,0.00019589,2]
[423772851,1780414254000,-1227.5148243,0.00019548,2]
[423772854,1780414254000,-1111.65371529,0.00019589,2]
[423772855,1780414254000,-1264.54885303,0.00019589,2]
[423772857,1780414254000,-1158.83841644,0.00019589,2]
[423772858,1780414254000,-1297.40251856,0.00019589,2]
[423772856,1780414254000,-1316.30765305,0.00019589,2]
[423772859,1780414254000,-1153.99605848,0.00019589,2]
[423772862,1780414254000,-151.0,0.000197,2]
[423772860,1780414254000,-1009.5,0.00019681,2]
[423772861,1780414254000,-151.0,0.000197,2]
[423772866,1780414254000,-680.046206,0.00019932,2]
[423772865,1780414254000,-5000.82647977,0.000199,2]
[423772863,1780414254000,-500.0,0.00019717,2]
[423772864,1780414254000,-233.141862,0.00019796,2]
[423772867,1780414254000,-1009.5,0.00019955,2]
[423772868,1780414254000,-500.0,0.00019991,2]
[423772870,1780414254000,-250.0,0.0002,2]
[423772869,1780414254000,-1707667.00377973,0.0002,2]
[423772877,1780414254000,-4421.598148,0.0002,2]
[423772878,1780414254000,-4421.598148,0.0002,2]
[423772873,1780414254000,-152.208028,0.0002,2]
[423772903,1780414254000,-177.44707969,0.00021361,2]
[423772959,1780414254000,-269.65741,0.00021918,2]
[423772909,1780414254000,-813.11,0.00021842,2]
[423772938,1780414254000,-342.619311,0.00021918,2]
[423772936,1780414254000,-393.96,0.00021918,2]
[423772942,1780414254000,-393.96,0.00021918,2]
[423772937,1780414254000,-342.619311,0.00021918,2]
[423772939,1780414254000,-393.96,0.00021918,2]
[423772945,1780414254000,-166.602685,0.00021918,2]
[423772944,1780414254000,-181.564221,0.00021918,2]
[423772941,1780414254000,-393.96,0.00021918,2]
[423772940,1780414254000,-393.96,0.00021918,2]
[423772935,1780414254000,-393.96,0.00021918,2]
[423772958,1780414254000,-152.587647,0.00021918,2]
[423772946,1780414254000,-166.602685,0.00021918,2]
[423772943,1780414254000,-174.62237,0.00021918,2]
[423772956,1780414254000,-151.0,0.00021918,2]
[423772948,1780414254000,-166.602685,0.00021918,2]
[423772955,1780414254000,-151.0,0.00021918,2]
[423772951,1780414254000,-151.0,0.00021918,2]
[423772952,1780414254000,-151.0,0.00021918,2]
[423772949,1780414254000,-166.602685,0.00021918,2]
[423772957,1780414254000,-151.0,0.00021918,2]
[423772953,1780414254000,-166.602685,0.00021918,2]
[423772954,1780414254000,-166.602685,0.00021918,2]
[423772960,1780414254000,-269.65741,0.00021918,2]
[423772962,1780414254000,-269.65741,0.00021918,2]
[423772961,1780414254000,-269.65741,0.00021918,2]
[423772904,1780414254000,-795.907427,0.00021404,2]
[423772950,1780414254000,-166.602685,0.00021918,2]
[423772934,1780414254000,-342.619311,0.00021918,2]
[423772947,1780414254000,-166.602685,0.00021918,2]
[423772927,1780414254000,-342.619311,0.00021918,2]
[423772908,1780414254000,-226.682068,0.0002183,2]
[423772924,1780414254000,-272.989278,0.00021918,2]
[423772905,1780414254000,-390.024442,0.00021405,2]
[423772906,1780414254000,-1009.63299086,0.00021598,2]
[423772907,1780414254000,-1000.0,0.000218,30]
[423772911,1780414254000,-152.208028,0.00021842,2]
[423772912,1780414254000,-152.208028,0.00021842,2]
[423772913,1780414254000,-152.208028,0.00021842,2]
[423772919,1780414254000,-272.989278,0.00021918,2]
[423772915,1780414254000,-4421.598148,0.00021842,2]
[423772920,1780414254000,-272.989278,0.00021918,2]
[423772918,1780414254000,-251.505992,0.00021918,2]
[423772917,1780414254000,-4421.598148,0.00021842,2]
[423772910,1780414254000,-152.208028,0.00021842,2]
[423772916,1780414254000,-4421.598148,0.00021842,2]
[423772926,1780414254000,-272.989278,0.00021918,2]
[423772914,1780414254000,-4421.598148,0.00021842,2]
[423772928,1780414254000,-342.619311,0.00021918,2]
[423772922,1780414254000,-272.989278,0.00021918,2]
[423772923,1780414254000,-272.989278,0.00021918,2]
[423772921,1780414254000,-272.989278,0.00021918,2]
[423772925,1780414254000,-272.989278,0.00021918,2]
[423772929,1780414254000,-342.619311,0.00021918,2]
[423772931,1780414254000,-393.96,0.00021918,2]
[423772933,1780414254000,-393.96,0.00021918,2]
[423772930,1780414254000,-342.619311,0.00021918,2]
[423772932,1780414254000,-342.619311,0.00021918,2]
[423773009,1780414255000,-469.8,0.00021918,2]
[423773008,1780414255000,-469.8,0.00021918,2]
[423773007,1780414255000,-151.0,0.00021918,2]
[423772998,1780414255000,-151.0,0.00021918,2]
[423773006,1780414255000,-469.8,0.00021918,2]
[423773004,1780414255000,-151.0,0.00021918,2]
[423773005,1780414255000,-151.0,0.00021918,2]
[423772997,1780414255000,-151.0,0.00021918,2]